fUSD/lending_fUSD_20260514
["ID","MTS","AMOUNT","RATE_DAILY","PERIOD"]
[422248728,1778764244000,-1036.98591685,0.00024,2]
[422248713,1778764244000,-2000.0,0.00023867,2]
[422248725,1778764244000,-169.0,0.00024,2]
[422248750,1778764244000,-261.716233,0.00024658,2]
[422248699,1778764244000,-950.0,0.0002385,2]
[422248700,1778764244000,-950.0,0.0002385,2]
[422248701,1778764244000,-950.0,0.0002385,2]
[422248702,1778764244000,-950.0,0.0002385,2]
[422248703,1778764244000,-950.0,0.0002385,2]
[422248704,1778764244000,-950.0,0.0002385,2]
[422248705,1778764244000,-950.0,0.0002385,2]
[422248706,1778764244000,-950.0,0.0002385,2]
[422248707,1778764244000,-950.0,0.0002385,2]
[422248708,1778764244000,-864.0,0.0002385,2]
[422248710,1778764244000,-2000.0,0.00023867,2]
[422248727,1778764244000,-2367.0,0.00024,2]
[422248712,1778764244000,-2000.0,0.00023867,2]
[422248711,1778764244000,-2000.0,0.00023867,2]
[422248714,1778764244000,-2000.0,0.00023867,2]
[422248716,1778764244000,-2000.0,0.00023867,2]
[422248720,1778764244000,-1326.43,0.00023989,2]
[422248715,1778764244000,-2000.0,0.00023867,2]
[422248718,1778764244000,-2000.0,0.00023867,2]
[422248719,1778764244000,-1326.43,0.00023868,2]
[422248717,1778764244000,-2000.0,0.00023867,2]
[422248722,1778764244000,-3851.0,0.00024,2]
[422248721,1778764244000,-2273.0,0.00024,2]
[422248724,1778764244000,-523.0,0.00024,2]
[422248723,1778764244000,-202.0,0.00024,2]
[422248709,1778764244000,-2000.0,0.00023867,2]
[422248754,1778764244000,-1097.0,0.00024658,2]
[422248758,1778764244000,-1097.0,0.00024658,2]
[422248756,1778764244000,-1097.0,0.00024658,2]
[422248791,1778764244000,-540.0,0.00025,2]
[422248788,1778764244000,-1128.36314486,0.00025,2]
[422248793,1778764244000,-3082.65079527,0.00025,2]
[422248790,1778764244000,-1808.00850147,0.00025,2]
[422248789,1778764244000,-210.17904466,0.00025,2]
[422248787,1778764244000,-2383.12908863,0.00025,2]
[422248792,1778764244000,-618.67725719,0.00025,2]
[422248795,1778764244000,-105610.57396544,0.00025,7]
[422248796,1778764244000,-2127.06986416,0.00025,2]
[422248794,1778764244000,-596.24993048,0.00025,2]
[422248797,1778764244000,-208.3309892,0.00025,7]
[422248801,1778764244000,-152.0,0.00025305,6]
[422248802,1778764244000,-2206.1741156,0.00025397,2]
[422248798,1778764244000,-214.95940296,0.00025,7]
[422248800,1778764244000,-6878.40236706,0.000253,2]
[422248803,1778764244000,-6878.40236706,0.000255,2]
[422248804,1778764244000,-1644.79977201,0.000255,2]
[422248806,1778764244000,-150.0,0.00025565,2]
[422248807,1778764244000,-1024.4954139,0.00025571,2]
[422248808,1778764244000,-229.3,0.00025644,2]
[422248805,1778764244000,-604.0,0.00025521,3]
[422248809,1778764244000,-18047.92,0.00025774,7]
[422248810,1778764244000,-329.59,0.00025786,2]
[422248811,1778764244000,-3002.89,0.00025786,2]
[422248755,1778764244000,-500.0,0.00024658,2]
[422248786,1778764244000,-458.12062855,0.00025,2]
[422248782,1778764244000,-220.12944582,0.00025,2]
[422248799,1778764244000,-208.3309892,0.00025,30]
[422248785,1778764244000,-185.18784369,0.00025,2]
[422248784,1778764244000,-6878.40236706,0.00025,2]
[422248757,1778764244000,-1097.0,0.00024658,2]
[422248761,1778764244000,-1097.0,0.00024658,2]
[422248760,1778764244000,-1097.0,0.00024658,2]
[422248762,1778764244000,-1097.0,0.00024658,2]
[422248763,1778764244000,-1097.0,0.00024658,2]
[422248767,1778764244000,-1097.0,0.00024658,2]
[422248766,1778764244000,-1097.0,0.00024658,2]
[422248764,1778764244000,-150.0,0.00024658,2]
[422248768,1778764244000,-1097.0,0.00024658,2]
[422248765,1778764244000,-1097.0,0.00024658,2]
[422248769,1778764244000,-1097.0,0.00024658,2]
[422248773,1778764244000,-1097.0,0.00024658,2]
[422248759,1778764244000,-1097.0,0.00024658,2]
[422248779,1778764244000,-604.0,0.00024959,2]
[422248770,1778764244000,-1097.0,0.00024658,2]
[422248771,1778764244000,-1097.0,0.00024658,2]
[422248775,1778764244000,-1097.0,0.00024658,2]
[422248774,1778764244000,-1097.0,0.00024658,2]
[422248776,1778764244000,-1097.0,0.00024658,2]
[422248778,1778764244000,-1418.48,0.000247,7]
[422248781,1778764244000,-3863.34849084,0.00025,2]
[422248772,1778764244000,-1097.0,0.00024658,2]
[422248780,1778764244000,-2285.0,0.00025,2]
[422248777,1778764244000,-1110.37378403,0.00024658,2]
[422248783,1778764244000,-525.60692728,0.00025,2]
[422248844,1778764245000,-2035.86,0.00026055,7]
[422248841,1778764245000,-269.91,0.00026027,7]
[422248853,1778764245000,-2035.86,0.00026084,2]
[422248850,1778764245000,-638.22,0.00026055,7]
[422248847,1778764245000,-1089.89,0.00026055,7]
[422248842,1778764245000,-500.0,0.00026028,2]
[422248848,1778764245000,-2036.71,0.00026055,7]
[422248846,1778764245000,-637.21,0.00026055,7]
[422248845,1778764245000,-1401.67,0.00026055,7]
[422248843,1778764245000,-1094.05,0.00026055,7]
[422248851,1778764245000,-604.0,0.00026082,3]
[422248849,1778764245000,-1403.0,0.00026055,7]
[422248866,1778764245000,-1403.0,0.00026113,2]
[422248858,1778764245000,-1403.0,0.00026084,2]
[422248857,1778764245000,-2036.71,0.00026084,2]
[422248854,1778764245000,-1401.67,0.00026084,2]
[422248855,1778764245000,-637.21,0.00026084,30]
[422248860,1778764245000,-1094.05,0.00026113,2]
[422248856,1778764245000,-1089.89,0.00026084,2]
[422248861,1778764245000,-2035.86,0.00026113,2]
[422248859,1778764245000,-638.22,0.00026084,30]
[422248862,1778764245000,-1401.67,0.00026113,2]
[422248863,1778764245000,-637.21,0.00026113,2]
[422248864,1778764245000,-1089.89,0.00026113,2]
[422248865,1778764245000,-2036.71,0.00026113,2]
[422248852,1778764245000,-1094.05,0.00026084,2]
[422248840,1778764245000,-638.22,0.00026027,2]
[422248812,1778764245000,-2423.94,0.00025786,2]
[422248838,1778764245000,-2036.71,0.00026027,2]
[422248815,1778764245000,-208.3309892,0.000258,7]
[422248814,1778764245000,-6878.40236706,0.000258,2]
[422248813,1778764245000,-5584.68,0.00025786,2]
[422248816,1778764245000,-214.95940296,0.000258,7]
[422248818,1778764245000,-40277.62527484,0.0002589,5]
[422248817,1778764245000,-499.73797022,0.00025834,2]
[422248820,1778764245000,-151.0,0.0002589,2]
[422248819,1778764245000,-151.0,0.0002589,2]
[422248822,1778764245000,-350.452789,0.0002589,2]
[422248821,1778764245000,-350.452789,0.0002589,2]
[422248823,1778764245000,-350.452789,0.0002589,2]
[422248824,1778764245000,-350.452789,0.0002589,2]
[422248826,1778764245000,-500.0,0.00025979,4]
[422248825,1778764245000,-500.0,0.00025979,4]
[422248828,1778764245000,-608.54956322,0.0002599,2]
[422248829,1778764245000,-6878.40236706,0.00026,2]
[422248830,1778764245000,-4580.81237175,0.00026,2]
[422248827,1778764245000,-526.86,0.00025979,4]
[422248831,1778764245000,-219.24301899,0.00026,2]
[422248833,1778764245000,-1094.05,0.00026027,2]
[422248832,1778764245000,-550.0,0.00026,2]
[422248834,1778764245000,-2035.86,0.00026027,2]
[422248835,1778764245000,-1401.67,0.00026027,2]
[422248836,1778764245000,-637.21,0.00026027,2]
[422248837,1778764245000,-1089.89,0.00026027,2]
[422248839,1778764245000,-1403.0,0.00026027,2]
[422248868,1778764245000,-1094.05,0.00026142,7]
[422248883,1778764245000,-638.22,0.00026171,30]
[422248867,1778764245000,-638.22,0.00026113,2]
[422248900,1778764245000,-1094.05,0.00026257,2]
[422248902,1778764245000,-1401.67,0.00026257,2]
[422248909,1778764245000,-629.126431,0.00026286,2]
[422248911,1778764245000,-629.126431,0.00026286,2]
[422248908,1778764245000,-629.126431,0.00026286,2]
[422248901,1778764245000,-2035.86,0.00026257,2]
[422248905,1778764245000,-2036.71,0.00026257,2]
[422248907,1778764245000,-638.22,0.00026257,30]
[422248903,1778764245000,-637.21,0.00026257,30]
[422248904,1778764245000,-1089.89,0.00026257,2]
[422248910,1778764245000,-629.126431,0.00026286,2]
[422248912,1778764245000,-1094.05,0.00026286,2]
[422248913,1778764245000,-2035.86,0.00026286,2]
[422248917,1778764245000,-2036.71,0.00026286,2]
[422248915,1778764245000,-637.21,0.00026286,2]
[422248916,1778764245000,-1089.89,0.00026286,2]
[422248918,1778764245000,-1403.0,0.00026286,2]
[422248914,1778764245000,-1401.67,0.00026286,2]
[422248920,1778764245000,-2572.9,0.00026296,2]
[422248919,1778764245000,-638.22,0.00026286,2]
[422248921,1778764245000,-6878.40236706,0.000263,2]
[422248922,1778764245000,-1094.05,0.00026315,7]
[422248923,1778764245000,-2035.86,0.00026315,7]
[422248925,1778764245000,-637.21,0.00026315,7]
[422248924,1778764245000,-1401.67,0.00026315,7]
[422248906,1778764245000,-1403.0,0.00026257,2]
[422248899,1778764245000,-638.22,0.00026229,7]
[422248870,1778764245000,-1401.67,0.00026142,7]
[422248896,1778764245000,-1089.89,0.00026229,7]
[422248874,1778764245000,-1403.0,0.00026142,7]
[422248872,1778764245000,-1089.89,0.00026142,7]
[422248871,1778764245000,-637.21,0.00026142,7]
[422248873,1778764245000,-2036.71,0.00026142,7]
[422248869,1778764245000,-2035.86,0.00026142,7]
[422248876,1778764245000,-1094.05,0.00026171,7]
[422248878,1778764245000,-1401.67,0.00026171,7]
[422248898,1778764245000,-1403.0,0.00026229,7]
[422248877,1778764245000,-2035.86,0.00026171,7]
[422248879,1778764245000,-637.21,0.00026171,30]
[422248881,1778764245000,-2036.71,0.00026171,7]
[422248880,1778764245000,-1089.89,0.00026171,7]
[422248886,1778764245000,-1401.67,0.000262,2]
[422248875,1778764245000,-638.22,0.00026142,7]
[422248884,1778764245000,-1094.05,0.000262,2]
[422248885,1778764245000,-2035.86,0.000262,2]
[422248897,1778764245000,-2036.71,0.00026229,7]
[422248894,1778764245000,-1401.67,0.00026229,7]
[422248895,1778764245000,-637.21,0.00026229,7]
[422248893,1778764245000,-2035.86,0.00026229,7]
[422248892,1778764245000,-1094.05,0.00026229,7]
[422248891,1778764245000,-638.22,0.000262,2]
[422248888,1778764245000,-1089.89,0.000262,2]
[422248887,1778764245000,-637.21,0.000262,2]
[422248889,1778764245000,-2036.71,0.000262,2]
[422248882,1778764245000,-1403.0,0.00026171,7]
[422248890,1778764245000,-1403.0,0.000262,2]
[422248964,1778764246000,-2036.71,0.00026431,2]
[422248962,1778764246000,-637.21,0.00026431,30]
[422248967,1778764246000,-2035.86,0.00026459,2]
[422248965,1778764246000,-1403.0,0.00026431,2]
[422248963,1778764246000,-1089.89,0.00026431,2]
[422248956,1778764246000,-2036.71,0.00026402,7]
[422248959,1778764246000,-1094.05,0.00026431,2]
[422248960,1778764246000,-2035.86,0.00026431,2]
[422248957,1778764246000,-1403.0,0.00026402,7]
[422248958,1778764246000,-638.22,0.00026402,7]
[422248961,1778764246000,-1401.67,0.00026431,2]
[422248968,1778764246000,-1401.67,0.00026459,2]
[422248981,1778764246000,-1403.0,0.00026488,7]
[422248969,1778764246000,-637.21,0.00026459,2]
[422248970,1778764246000,-1089.89,0.00026459,2]
[422248971,1778764246000,-2036.71,0.00026459,2]
[422248972,1778764246000,-1403.0,0.00026459,2]
[422248973,1778764246000,-926.0,0.00026462,2]
[422248975,1778764246000,-1094.05,0.00026488,7]
[422248976,1778764246000,-2035.86,0.00026488,7]
[422248974,1778764246000,-1024.4954139,0.00026484,2]
[422248977,1778764246000,-1401.67,0.00026488,7]
[422248978,1778764246000,-637.21,0.00026488,7]
[422248979,1778764246000,-1089.89,0.00026488,7]
[422248955,1778764246000,-1089.89,0.00026402,7]
[422248966,1778764246000,-1094.05,0.00026459,2]
[422248954,1778764246000,-637.21,0.00026402,7]
[422248944,1778764246000,-2036.71,0.00026373,2]
[422248952,1778764246000,-2035.86,0.00026402,7]
[422248980,1778764246000,-2036.71,0.00026488,7]
[422248931,1778764246000,-2035.86,0.00026344,7]
[422248928,1778764246000,-1403.0,0.00026315,7]
[422248930,1778764246000,-1094.05,0.00026344,7]
[422248926,1778764246000,-1089.89,0.00026315,7]
[422248927,1778764246000,-2036.71,0.00026315,7]
[422248932,1778764246000,-1401.67,0.00026344,7]
[422248934,1778764246000,-1089.89,0.00026344,7]
[422248933,1778764246000,-637.21,0.00026344,30]
[422248935,1778764246000,-2036.71,0.00026344,7]
[422248936,1778764246000,-1403.0,0.00026344,7]
[422248937,1778764246000,-638.22,0.00026344,30]
[422248938,1778764246000,-152.0,0.0002635,7]
[422248941,1778764246000,-1401.67,0.00026373,2]
[422248939,1778764246000,-1094.05,0.00026373,2]
[422248942,1778764246000,-637.21,0.00026373,2]
[422248940,1778764246000,-2035.86,0.00026373,2]
[422248943,1778764246000,-1089.89,0.00026373,2]
[422248946,1778764246000,-638.22,0.00026373,2]
[422248945,1778764246000,-1403.0,0.00026373,2]
[422248947,1778764246000,-200.0,0.0002639,20]
[422248948,1778764246000,-2206.1741156,0.00026397,2]
[422248950,1778764246000,-27845.66932154,0.000264,2]
[422248951,1778764246000,-1094.05,0.00026402,7]
[422248949,1778764246000,-367.69568594,0.00026397,2]
[422248953,1778764246000,-1401.67,0.00026402,7]
[422248982,1778764246000,-6878.40236706,0.000265,2]
[422248929,1778764246000,-638.22,0.00026315,7]
[422248985,1778764246000,-1094.05,0.00026517,7]
[422249016,1778764246000,-500.0,0.00026986,30]
[422249018,1778764246000,-2000.0,0.00027,2]
[422249017,1778764246000,-840.228,0.00026986,30]
[422249019,1778764246000,-12540.67,0.00027,2]
[422249022,1778764246000,-500.0,0.00027022,2]
[422249020,1778764246000,-160.0,0.00027,30]
[422249023,1778764246000,-6878.40236706,0.000271,2]
[422249024,1778764246000,-8018.0,0.000271,7]
[422249021,1778764246000,-2570.744474,0.0002701,2]
[422249025,1778764246000,-604.0,0.00027205,4]
[422249027,1778764246000,-150.0,0.00027297,2]
[422249026,1778764246000,-151.434855,0.00027248,7]
[422249015,1778764246000,-500.0,0.00026986,30]
[422249030,1778764246000,-1077.82,0.000273,2]
[422249034,1778764246000,-241.5406053,0.00027377,7]
[422249032,1778764246000,-1077.82,0.00027357,2]
[422249035,1778764246000,-1077.82,0.00027386,2]
[422249031,1778764246000,-1077.82,0.00027329,2]
[422249036,1778764246000,-2000.0,0.00027387,7]
[422249033,1778764246000,-229.3,0.00027358,2]
[422249037,1778764246000,-157.0,0.0002739,3]
[422249038,1778764246000,-152.0,0.00027394,8]
[422249041,1778764246000,-268.48045955,0.00027397,2]
[422249040,1778764246000,-1470.78274373,0.00027397,7]
[422249039,1778764246000,-300.0,0.00027396,10]
[422248984,1778764246000,-214.95940296,0.000265,7]
[422249029,1778764246000,-6878.40236706,0.000273,2]
[422249013,1778764246000,-6878.40236706,0.000268,2]
[422249028,1778764246000,-150.0,0.00027297,2]
[422249011,1778764246000,-1418.48,0.000267,7]
[422248983,1778764246000,-208.3309892,0.000265,7]
[422249014,1778764246000,-150.0,0.00026849,2]
[422248986,1778764246000,-2035.86,0.00026517,7]
[422248989,1778764246000,-1089.89,0.00026517,7]
[422248987,1778764246000,-1401.67,0.00026517,7]
[422248988,1778764246000,-637.21,0.00026517,30]
[422248991,1778764246000,-1403.0,0.00026517,7]
[422248990,1778764246000,-2036.71,0.00026517,7]
[422248993,1778764246000,-2035.86,0.00026546,2]
[422248994,1778764246000,-1401.67,0.00026546,2]
[422248996,1778764246000,-1089.89,0.00026546,2]
[422248995,1778764246000,-637.21,0.00026546,2]
[422248997,1778764246000,-2036.71,0.00026546,2]
[422248992,1778764246000,-1094.05,0.00026546,2]
[422248999,1778764246000,-980.76,0.00026575,2]
[422249012,1778764246000,-202.01375838,0.0002679,7]
[422248998,1778764246000,-1403.0,0.00026546,2]
[422249007,1778764246000,-1403.02,0.00026575,7]
[422249005,1778764246000,-1089.95,0.00026575,7]
[422249006,1778764246000,-2036.76,0.00026575,7]
[422249008,1778764246000,-200.0,0.0002659,20]
[422249010,1778764246000,-604.0,0.00026644,4]
[422249003,1778764246000,-1401.73,0.00026575,7]
[422249000,1778764246000,-1086.5,0.00026575,7]
[422249001,1778764246000,-1094.13,0.00026575,7]
[422249002,1778764246000,-2035.99,0.00026575,7]
[422249004,1778764246000,-637.3,0.00026575,7]
[422249096,1778764247000,-1145.82838,0.00027397,2]
[422249091,1778764247000,-1145.82838,0.00027397,2]
[422249090,1778764247000,-1145.82838,0.00027397,2]
[422249087,1778764247000,-1145.82838,0.00027397,2]
[422249089,1778764247000,-1145.82838,0.00027397,2]
[422249086,1778764247000,-1145.82838,0.00027397,2]
[422249084,1778764247000,-516.499835,0.00027397,2]
[422249083,1778764247000,-516.499835,0.00027397,2]
[422249085,1778764247000,-1145.82838,0.00027397,2]
[422249092,1778764247000,-1145.82838,0.00027397,2]
[422249088,1778764247000,-1145.82838,0.00027397,2]
[422249093,1778764247000,-1145.82838,0.00027397,2]
[422249108,1778764247000,-803.606374,0.00027397,2]
[422249095,1778764247000,-1145.82838,0.00027397,2]
[422249098,1778764247000,-151.0,0.00027397,2]
[422249099,1778764247000,-151.0,0.00027397,2]
[422249097,1778764247000,-151.0,0.00027397,2]
[422249101,1778764247000,-151.0,0.00027397,2]
[422249100,1778764247000,-803.606374,0.00027397,2]
[422249102,1778764247000,-803.606374,0.00027397,2]
[422249104,1778764247000,-803.606374,0.00027397,2]
[422249103,1778764247000,-151.0,0.00027397,2]
[422249105,1778764247000,-299.605622,0.00027397,2]
[422249107,1778764247000,-803.606374,0.00027397,2]
[422249081,1778764247000,-516.499835,0.00027397,2]
[422249094,1778764247000,-1145.82838,0.00027397,2]
[422249080,1778764247000,-247.56391,0.00027397,2]
[422249044,1778764247000,-186.4,0.00027397,5]
[422249082,1778764247000,-526.4,0.00027397,2]
[422249106,1778764247000,-803.606374,0.00027397,2]
[422249043,1778764247000,-796.82940096,0.00027397,30]
[422249045,1778764247000,-1500.0,0.00027397,2]
[422249042,1778764247000,-1024.4954139,0.00027397,2]
[422249048,1778764247000,-151.16892255,0.00027397,2]
[422249049,1778764247000,-2000.0,0.00027397,7]
[422249047,1778764247000,-957.84,0.00027397,2]
[422249046,1778764247000,-2000.0,0.00027397,7]
[422249053,1778764247000,-1464.95,0.00027397,2]
[422249051,1778764247000,-2000.0,0.00027397,7]
[422249055,1778764247000,-300.0,0.00027397,2]
[422249059,1778764247000,-3914.006443,0.00027397,2]
[422249057,1778764247000,-3914.006443,0.00027397,2]
[422249061,1778764247000,-3914.006443,0.00027397,2]
[422249067,1778764247000,-151.0,0.00027397,2]
[422249069,1778764247000,-151.0,0.00027397,2]
[422249071,1778764247000,-151.0,0.00027397,2]
[422249063,1778764247000,-3914.006443,0.00027397,2]
[422249070,1778764247000,-151.0,0.00027397,2]
[422249065,1778764247000,-151.0,0.00027397,2]
[422249073,1778764247000,-282.484073,0.00027397,2]
[422249072,1778764247000,-151.0,0.00027397,2]
[422249074,1778764247000,-516.499835,0.00027397,2]
[422249076,1778764247000,-516.499835,0.00027397,2]
[422249077,1778764247000,-516.499835,0.00027397,2]
[422249075,1778764247000,-516.499835,0.00027397,2]
[422249078,1778764247000,-151.0,0.00027397,2]
[422249079,1778764247000,-516.499835,0.00027397,2]
[422249109,1778764247000,-803.606374,0.00027397,2]
[422249115,1778764247000,-8101.16,0.00027397,10]
[422249110,1778764247000,-803.606374,0.00027397,2]
[422249144,1778764247000,-1077.82,0.00027443,2]
[422249145,1778764247000,-1077.82,0.00027471,2]
[422249146,1778764247000,-204.04540988,0.000275,2]
[422249148,1778764247000,-206.8682,0.0002761,2]
[422249147,1778764247000,-1077.82,0.000275,2]
[422249155,1778764247000,-152.141,0.00027938,120]
[422249150,1778764247000,-604.0,0.00027767,5]
[422249151,1778764247000,-500.0,0.000278,7]
[422249154,1778764247000,-824.67122955,0.00027894,2]
[422249149,1778764247000,-18047.92,0.00027699,7]
[422249153,1778764247000,-2000.0,0.00027836,2]
[422249152,1778764247000,-2000.0,0.00027836,2]
[422249143,1778764247000,-1077.82,0.00027414,2]
[422249157,1778764247000,-51564.40589679,0.00028,2]
[422249158,1778764247000,-160.0,0.00028,2]
[422249159,1778764247000,-643.0,0.00028,2]
[422249160,1778764247000,-600.0,0.00028,2]
[422249161,1778764247000,-678.96,0.00028,2]
[422249164,1778764247000,-678.96,0.00028,2]
[422249166,1778764247000,-678.96,0.00028,2]
[422249165,1778764247000,-678.96,0.00028,2]
[422249111,1778764247000,-803.606374,0.00027397,2]
[422249163,1778764247000,-678.96,0.00028,2]
[422249167,1778764247000,-678.96,0.00028,2]
[422249168,1778764247000,-678.96,0.00028,2]
[422249169,1778764247000,-678.96,0.00028,2]
[422249156,1778764247000,-218.59374268,0.00027997,7]
[422249138,1778764247000,-5194.02,0.000274,2]
[422249162,1778764247000,-678.96,0.00028,2]
[422249137,1778764247000,-170.02366446,0.000274,120]
[422249139,1778764247000,-5194.02,0.000274,2]
[422249113,1778764247000,-803.606374,0.00027397,2]
[422249112,1778764247000,-803.606374,0.00027397,2]
[422249117,1778764247000,-13872.12,0.00027397,10]
[422249114,1778764247000,-803.606374,0.00027397,2]
[422249118,1778764247000,-200.0,0.00027397,7]
[422249119,1778764247000,-200.0,0.00027397,7]
[422249120,1778764247000,-200.0,0.00027397,7]
[422249122,1778764247000,-289.991963,0.00027397,7]
[422249121,1778764247000,-200.0,0.00027397,7]
[422249123,1778764247000,-1042.56,0.00027397,2]
[422249125,1778764247000,-150.0,0.00027397,2]
[422249131,1778764247000,-1470.78274373,0.00027397,7]
[422249116,1778764247000,-200.0,0.00027397,7]
[422249124,1778764247000,-150.0,0.00027397,2]
[422249132,1778764247000,-500.0,0.00027398,2]
[422249142,1778764247000,-5194.02,0.000274,2]
[422249135,1778764247000,-2998.49,0.000274,7]
[422249136,1778764247000,-8018.0,0.000274,7]
[422249133,1778764247000,-1432.29,0.000274,7]
[422249141,1778764247000,-5194.02,0.000274,2]
[422249130,1778764247000,-207.88460459,0.00027397,2]
[422249126,1778764247000,-150.0,0.00027397,2]
[422249134,1778764247000,-4042.1,0.000274,14]
[422249128,1778764247000,-150.0,0.00027397,2]
[422249140,1778764247000,-5194.02,0.000274,2]
[422249127,1778764247000,-150.0,0.00027397,2]
[422249129,1778764247000,-150.0,0.00027397,2]
[422249197,1778764248000,-2000.0,0.00028109,2]
[422249196,1778764248000,-2000.0,0.00028109,2]
[422249195,1778764248000,-2000.0,0.00028109,2]
[422249199,1778764248000,-413.0,0.00028109,2]
[422249202,1778764248000,-250.0,0.00028171,2]
[422249201,1778764248000,-250.0,0.00028171,2]
[422249200,1778764248000,-250.0,0.00028171,2]
[422249203,1778764248000,-250.0,0.00028171,2]
[422249205,1778764248000,-250.0,0.00028171,2]
[422249198,1778764248000,-1654.0,0.00028109,2]
[422249215,1778764248000,-2000.0,0.00028389,2]
[422249207,1778764248000,-250.0,0.00028171,2]
[422249208,1778764248000,-357.0,0.00028171,2]
[422249213,1778764248000,-796.82940096,0.00028311,30]
[422249212,1778764248000,-2572.9,0.00028267,2]
[422249210,1778764248000,-264.983,0.00028212,120]
[422249209,1778764248000,-150.0,0.00028192,2]
[422249214,1778764248000,-604.0,0.00028329,6]
[422249217,1778764248000,-2000.0,0.00028389,2]
[422249211,1778764248000,-157.0,0.0002824,3]
[422249204,1778764248000,-250.0,0.00028171,2]
[422249206,1778764248000,-250.0,0.00028171,2]
[422249193,1778764248000,-2000.0,0.00028109,2]
[422249180,1778764248000,-2000.0,0.0002808,2]
[422249192,1778764248000,-2000.0,0.00028109,2]
[422249170,1778764248000,-678.96,0.00028,2]
[422249171,1778764248000,-250.0,0.00028057,2]
[422249174,1778764248000,-250.0,0.00028057,2]
[422249173,1778764248000,-250.0,0.00028057,2]
[422249175,1778764248000,-250.0,0.00028057,2]
[422249176,1778764248000,-250.0,0.00028057,2]
[422249172,1778764248000,-250.0,0.00028057,2]
[422249177,1778764248000,-250.0,0.00028057,2]
[422249179,1778764248000,-353.0,0.00028057,2]
[422249178,1778764248000,-250.0,0.00028057,2]
[422249181,1778764248000,-2000.0,0.0002808,2]
[422249183,1778764248000,-2000.0,0.0002808,2]
[422249184,1778764248000,-1975.0,0.0002808,2]
[422249182,1778764248000,-2000.0,0.0002808,2]
[422249189,1778764248000,-318.0,0.0002808,2]
[422249186,1778764248000,-700.0,0.0002808,2]
[422249187,1778764248000,-700.0,0.0002808,2]
[422249190,1778764248000,-2000.0,0.00028109,2]
[422249188,1778764248000,-700.0,0.0002808,2]
[422249185,1778764248000,-700.0,0.0002808,2]
[422249191,1778764248000,-2000.0,0.00028109,2]
[422249194,1778764248000,-2000.0,0.00028109,2]
[422249216,1778764248000,-2000.0,0.00028389,2]
[422249223,1778764248000,-2000.0,0.00028389,2]
[422249219,1778764248000,-2000.0,0.00028389,2]
[422249244,1778764248000,-1258.844168,0.00028767,7]
[422249247,1778764248000,-1258.844168,0.00028767,7]
[422249248,1778764248000,-1258.844168,0.00028767,7]
[422249250,1778764248000,-2998.49,0.000288,7]
[422249249,1778764248000,-500.0,0.00028768,2]
[422249251,1778764248000,-1418.49,0.000288,7]
[422249252,1778764248000,-604.0,0.0002889,6]
[422249253,1778764248000,-509.41341294,0.00029,2]
[422249255,1778764248000,-157.0,0.0002909,3]
[422249254,1778764248000,-1564.370404,0.00029,2]
[422249256,1778764248000,-1000.0,0.0002913,7]
[422249257,1778764248000,-506.71837327,0.0002913,5]
[422249259,1778764248000,-202.50401772,0.0002913,7]
[422249260,1778764248000,-500.0,0.0002913,5]
[422249262,1778764248000,-478.0,0.00029167,2]